Workbook

Sheet Sheet1
D8: 2018 Income | E8: 2019 Income | F8: 2020 Income | G8: 2021 Income | H8: 2022 Income
C9: Dept of Corrections | E9: 8368 | F9: 3869
C10: Judson Construction | D10: 2374 | F10: 1827 | G10: 2485
C11: MTW Plating | D11: 606
C12: Keating | D12: 3357
C14: CC Processing | D14: =SUM(D15:D29) -> 72346 | E14: 97779 | F14: =SUM(F15:F29) -> 83677 | G14: =SUM(G15:G29) -> 76191 | H14: =SUM(H15:H29) -> 60998
C15: January | D15: 5000 | E15: 2000 | F15: 8020 | G15: 3110 | H15: 0
C16: February | D16: 1023 | E16: 7451 | F16: 288 | G16: 0 | H16: 0
C17: March | D17: 7000 | E17: 1919 | F17: 4131 | G17: 7397 | H17: 7075
D18: =SUM(D15:D17) -> 13023 | E18: =SUM(E15:E17) -> 11370 | F18: 12439 | G18: 10507 | H18: 7075 | I18: =F18/E18 -> 1.094019349
C19: April | D19: 6237 | E19: 3293 | F19: 1049 | G19: 4056 | H19: 4646
C20: May | D20: 751 | E20: 6340 | F20: 4893 | G20: 4315 | H20: 1673
C21: June | D21: 107 | E21: 2993 | F21: 1058 | G21: 517 | H21: 2500
D22: =SUM(D19:D21) -> 7095 | E22: =SUM(E19:E21) -> 12626 | F22: =SUM(F19:F21) -> 7000 | G22: =SUM(G19:G21) -> 8888 | H22: =SUM(H19:H21) -> 8819 | I22: =F22/E22 -> 0.5544115318
C23: July | D23: 1050 | E23: 6526 | F23: 5319 | G23: 9742 | H23: 3415
C24: August | D24: 390 | E24: 7406 | F24: 7851 | G24: 1995 | H24: 4564
C25: September | D25: 7922 | E25: 2283 | F25: 2433 | G25: 2759 | H25: 3698
D26: =SUM(D23:D25) -> 9362 | E26: =SUM(E23:E25) -> 16215 | F26: =SUM(F23:F25) -> 15603 | G26: =SUM(G23:G25) -> 14496 | H26: =SUM(H23:H25) -> 11677 | I26: =F26/E26 -> 0.9622571693
C27: October | D27: 0 | E27: 2884 | F27: 0 | G27: 1410 | H27: 2515
C28: November | D28: 3267 | E28: 1668 | F28: 10085 | G28: 4443 | H28: 343
C29: December | D29: 10119 | E29: 12805 | F29: 3508 | G29: 2556 | H29: 2998
D30: =SUM(D27:D29) -> 13386 | E30: =SUM(E27:E29) -> 17357 | F30: =SUM(F27:F29) -> 13593 | G30: =SUM(G27:G29) -> 8409 | H30: =SUM(H27:H29) -> 5856 | I30: =F30/E30 -> 0.7831422481
D31: =SUM(D9:D14) -> 78683 | E31: =SUM(E9:E14) -> 106147 | F31: 89373 | G31: 78676 | H31: 60998
C35: 941 Taxes
C36: 1st qtr | E36: 1597.93 | F36: 1150.99 | G36: 1373.45 | H36: 1714.84
C37: 2nd qtr | F37: 1334.29 | G37: 1109.34 | H37: 1279.2
C38: 3rd qtr | D38: 1041.35 | E38: 1212.2 | F38: 963.21 | G38: 1791.33 | H38: 1291.22
C39: 4th qtr | D39: 1784.03 | E39: 1558.78 | F39: 1245.27 | G39: 2071.25 | H39: 1653.33
C41: Employee Retention Credit for COVID | I41: Has fewer than 100 employees? | J41: Yes
C42: 1st qtr | I42: Partly closed doe to government order? | J42: No
C43: 2nd qtr | F43: 4750.66 | I43: Revenue declined 50% or more relative to same qtr in 2019 | J43: No
C44: 3rd qtr | F44: 3306.15 | I44: You kept your employees on the payroll
C45: 4th qtr | F45: 3779.69
C47: Decrease of Employee Retention Credit
C48: 1st qtr
C49: 2nd qtr | F49: -4750.66
C50: 3rd qtr | F50: -3306.15
C51: 4th qtr
C53: HIRE Credits | I53: Hired an eligible employee?
C54: 1st qtr | G54: 5668.11 | I54: Received a certification of employee eligibility?
C55: 2nd qtr | G55: 4790.85 | I55: Employee worked at least
C56: 3rd qtr | G56: 5970.71
C57: 4th qtr

Sheet Sheet2
A1: Did you 1) operate a trade, business or tax-exempt organization and 2) have employees and pay wages to them between March 13, 2020, and Dec. 31, 2021?
A2: Did your trade or business experience the required decline in gross receipts during the eligibility periods in 2020 or the first three calendar quarters (Jan. through Sept.) of 2021?
